bitfinex-derivatives/quotes_SOLF0:USTF0_20241217
["timestamp","ask_amount","ask_price","bid_price","bid_amount"]
[1734465727364,2.1876,228.55,228.47,8.09974617]
[1734465727667,6.38100986,228.54,228.47,8.09974617]
[1734465727869,3.76477754,228.53,228.47,8.09974617]
[1734465728168,2.1876,228.55,228.47,8.09974617]
[1734465728366,6.38070801,228.54,228.47,8.09974617]
[1734465728566,3.76459938,228.53,228.47,8.09974617]
[1734465728764,2.1876,228.55,228.47,8.09974617]
[1734465728966,6.38072867,228.54,228.53,2.1877]
[1734465729165,3.76461109,228.54,228.53,2.1877]
[1734465729566,2.1871,228.61,228.57,2.1874]
[1734465729769,6.37969131,228.6,228.57,2.1874]
[1734465729969,6.37969131,228.59,228.57,2.1874]
[1734465730172,6.37969131,228.58,228.57,2.1874]
[1734465730563,2.36,228.67,228.59,2.1872]
[1734465731067,6.37859181,228.65,228.56,8.09974617]
[1734465731265,3.76339714,228.64,228.56,8.09974617]
[1734465731463,6.37830301,228.63,228.56,8.09974617]
[1734465731667,8.09974617,228.7,228.56,8.09974617]
[1734465731867,2.1866,228.65,228.61,2.187]
[1734465732068,6.37779798,228.64,228.61,2.187]
[1734465732263,3.7629389,228.63,228.61,2.187]
[1734465732472,8.09974617,228.7,228.61,2.187]
[1734465732767,11.65111321,228.69,228.56,8.09974617]
[1734465732967,8.09974617,228.67,228.53,267.31287673]
[1734465733171,8.09974617,228.64,228.54,2.36]
[1734465733468,2.1871,228.6,228.55,2.1876]
[1734465734366,2.1872,228.6,228.55,2.1876]
[1734465734965,6.37911744,228.59,228.55,2.1876]
[1734465735162,6.37911744,228.58,228.55,2.1876]
[1734465735369,6.37911744,228.57,228.55,2.1876]
[1734465735563,3.76370108,228.56,228.55,2.1876]
[1734465735768,2.1872,228.6,228.55,2.1876]
[1734465736064,6.37961529,228.59,228.55,2.1876]
[1734465736270,6.37961529,228.58,228.55,2.1876]
[1734465736473,6.37961529,228.57,228.55,2.1876]
[1734465736672,2.1872,228.6,228.55,2.1876]
[1734465736869,6.37999354,228.59,228.55,2.1876]
[1734465737167,8.09112351,228.65,228.54,7.70197276]
[1734465737168,2.1869,228.62,228.54,15.79309627]
[1734465737369,3.76449655,228.61,228.54,15.79309627]
[1734465737672,8.09112351,228.68,228.54,15.79309627]
[1734465737673,6.38046335,228.6,228.54,15.79309627]
[1734465737875,6.38046335,228.59,228.54,15.79309627]
[1734465738073,6.38046335,228.58,228.54,15.79309627]
[1734465738275,3.76449425,228.57,228.54,15.79309627]
[1734465738474,2.1869,228.62,228.57,2.1873]
[1734465738674,6.3806283,228.61,228.54,15.79309627]
[1734465738876,6.3806283,228.6,228.54,15.79309627]
[1734465739074,6.3806283,228.59,228.54,15.79309627]
[1734465739274,6.3806283,228.58,228.54,15.79309627]
[1734465739479,2.1868,228.63,228.54,15.79309627]
[1734465739480,3.76459485,228.57,228.54,15.79309627]
[1734465739772,2.1868,228.63,228.54,15.79309627]
[1734465739773,2.1868,228.63,228.59,2.1872]
[1734465739965,6.38061823,228.62,228.59,2.1872]
[1734465740172,6.38061823,228.61,228.6,2.1871]
[1734465740582,6.38078605,228.61,228.6,2.1871]
[1734465740874,1.72118605,228.61,228.6,10.27822351]
[1734465741076,11.06492351,228.74,228.6,8.09112351]
[1734465741268,2.9738,228.74,228.63,8.09112351]
[1734465741468,2.186,228.72,228.64,2.36]
[1734465742476,2.186,228.72,228.67,2.1864]
[1734465742667,2.186,228.71,228.67,2.1864]
[1734465744773,2.90193,228.73,228.68,2.1863]
[1734465745578,2.1859,228.72,228.64,2.36]
[1734465746474,2.1859,228.72,228.68,2.1863]
[1734465749073,2.1859,228.72,228.64,2.36]
[1734465749074,2.1859,228.72,228.69,2.1862]
[1734465749680,0.71603,228.73,228.64,2.36]
[1734465749873,0.71603,228.73,228.66,8.09112351]
[1734465750282,2.1862,228.7,228.61,20.38167995]
[1734465750480,1.4412,228.72,228.61,2.36]
[1734465750677,1.4412,228.72,228.62,2.1869]
[1734465751185,2.1866,228.66,228.62,2.1869]
[1734465752180,2.1868,228.63,228.61,2.36]
[1734465752482,8.09112351,228.67,228.58,2.36]
[1734465753080,2.56826042,228.66,228.58,2.36]
[1734465753385,2.187,228.62,228.58,2.36]
[1734465753585,2.5682197,228.61,228.54,8.09112351]
[1734465753884,2.1876,228.55,228.51,2.36]
[1734465754087,2.5682197,228.54,228.51,2.36]
[1734465754387,2.1874,228.57,228.51,4.5479]
[1734465754588,2.56874523,228.56,228.51,2.36]
[1734465754886,2.56874523,228.55,228.48,8.09112351]
[1734465755080,2.56874523,228.54,228.44,2.36]
[1734465755683,2.56874523,228.54,228.45,2.36]
[1734465755884,4.07174523,228.54,228.45,2.36]
[1734465756080,2.56874523,228.53,228.45,2.36]
[1734465756591,2.1882,228.49,228.45,2.36]
[1734465756891,2.56848166,228.48,228.45,2.36]
[1734465757289,2.1882,228.49,228.45,2.36]
[1734465757688,1.503,228.54,228.45,2.36]
[1734465757889,2.56802523,228.53,228.45,2.36]
[1734465758090,2.56802523,228.52,228.45,2.36]
[1734465758289,1.503,228.54,228.45,2.36]
[1734465758592,8.09112351,228.52,228.36,74.17293396]
[1734465758886,8.09112351,228.49,228.37,2.36]
[1734465759187,8.09112351,228.46,228.35,18.02167995]
[1734465759388,8.09112351,228.43,228.34,20.38167995]
[1734465759595,2.5674227,228.42,228.34,20.38167995]
[1734465759790,1.4134,228.42,228.34,2.36]
[1734465760488,1.4134,228.42,228.29,18.02167995]
[1734465760489,8.09112351,228.37,228.29,18.02167995]
[1734465760694,3.97885399,228.36,228.29,18.02167995]
[1734465760886,2.8632,228.36,228.29,18.02167995]
[1734465762187,2.56117644,228.35,228.29,18.02167995]
[1734465762387,10.65245809,228.34,228.29,18.02167995]
[1734465762694,10.65245809,228.34,228.28,48.0601305]
[1734465762695,2.19,228.3,228.28,48.0601305]
[1734465762893,2.19,228.3,228.28,31.5087305]
[1734465763190,8.09112351,228.31,228.27,72.1422572]
[1734465763393,8.09112351,228.28,228.27,72.1422572]
[1734465763795,10.28122351,228.28,228.27,7.48028315]
[1734465763996,13.0094767,228.28,228.25,120.98906291]
[1734465764195,10.45112351,228.28,228.25,120.98906291]
[1734465764494,2.1903,228.26,228.25,120.98906291]
[1734465764693,8.09112351,228.28,228.25,120.98906291]
[1734465766092,8.09112351,228.28,227.82,4.4]
[1734465766093,8.09112351,228.28,228.15,2.36]
[1734465766295,8.09112351,228.28,228.16,8.09112351]
[1734465766796,8.09112351,228.28,228.15,2.36]
[1734465766994,8.09112351,228.28,228.16,8.09112351]
[1734465768591,8.09112351,228.31,228.16,8.09112351]
[1734465768797,8.09112351,228.34,228.19,8.09112351]
[1734465768993,8.09112351,228.34,228.2,3.8567]
[1734465769192,2.1898,228.32,228.25,2.1904]
[1734465769392,8.09112351,228.34,228.2,3.8567]
[1734465770195,2.1899,228.31,228.23,2.1905]
[1734465770597,8.09112351,228.34,228.2,3.8567]
[1734465770798,2.1897,228.33,228.27,2.1902]
[1734465771299,5.20104076,228.36,228.26,2.36]
[1734465771498,8.09112351,228.34,228.26,2.36]
[1734465772199,8.09112351,228.34,228.2,1.4967]
[1734465772499,8.09112351,228.28,228.2,2.36]
[1734465772697,8.09112351,228.28,228.18,2.36]
[1734465773300,8.09112351,228.28,228.13,9.51292351]
[1734465773500,8.09112351,228.25,228.14,2.36]
[1734465774098,2.1908,228.21,228.16,2.1913]
[1734465774801,8.09112351,228.25,228.15,2.36]
[1734465775209,2.1906,228.24,228.18,2.1911]
[1734465775404,8.09112351,228.25,228.18,2.1911]
[1734465775899,2.1906,228.23,228.18,2.1911]
[1734465776898,8.09112351,228.25,228.14,2.36]
[1734465777604,8.09112351,228.25,228.15,2.1913]
[1734465777800,8.09112351,228.19,228.09,2.36]
[1734465778105,2.1914,228.16,228.1,2.36]
[1734465778305,8.09112351,228.19,228.07,2.36]
[1734465778694,10.45112351,228.19,228.07,2.36]
[1734465778902,10.45112351,228.19,228.09,2.192]
[1734465779300,2.1914,228.15,228.1,2.1918]
[1734465779806,2.1911,228.18,228.1,2.1918]
[1734465780008,10.45112351,228.19,228.07,2.36]
[1734465780205,8.09112351,228.16,228.07,2.36]
[1734465780706,10.45112351,228.19,228.08,2.36]
[1734465781005,12.64222351,228.19,228.13,2.1915]
[1734465781204,8.09112351,228.16,228.04,4.389]
[1734465781408,8.09112351,228.13,228.04,4.389]
[1734465782101,10.28282351,228.13,228.06,2.1922]
[1734465782409,8.09112351,228.13,228.04,6.749]
[1734465782811,10.28272351,228.13,228.07,2.1921]
[1734465783506,5.23009768,228.2,227.88,9.55562351]
[1734465783507,8.09112351,228.08,227.88,9.55562351]
[1734465783710,8.09112351,228.05,227.93,1.4189]
[1734465783908,8.09112351,228.05,227.94,1.5562]
[1734465784104,8.09112351,228.05,227.94,3.9162]
[1734465785012,8.09112351,228.05,227.94,1.5562]
[1734465785310,8.09112351,228.02,227.94,1.5562]
[1734465785505,2.1929,228.0,227.94,3.7496]
[1734465785702,2.36,228.01,227.93,1.4189]
[1734465786812,2.36,228.03,227.93,1.4189]
[1734465787110,13.46818131,228.08,227.93,1.4189]
[1734465787312,8.09112351,228.02,227.93,1.4189]
[1734465787612,2.36,228.01,227.93,1.4189]
[1734465787812,2.193,227.99,227.93,3.6124]
[1734465788810,2.36,228.01,227.93,1.4189]
[1734465789809,8.09112351,228.02,227.93,1.4189]
[1734465790013,5.3770578,228.08,227.93,1.4189]
[1734465790014,2.36,228.03,227.93,1.4189]
[1734465790218,10.45112351,228.05,227.93,1.4189]
[1734465790611,2.1926,228.03,227.93,1.4189]
[1734465790811,10.45112351,228.05,227.93,1.4189]
[1734465791015,8.09112351,227.99,227.93,1.4189]
[1734465792012,10.28402351,227.99,227.94,2.1934]
[1734465793714,10.28402351,227.99,227.94,2.1933]
[1734465796709,10.28402351,227.99,227.89,1.5562]
[1734465796710,8.09112351,227.99,227.89,1.5562]
[1734465796910,8.09112351,228.02,227.89,1.5562]
[1734465797112,8.09112351,228.02,227.93,2.1934]
[1734465797410,8.09112351,228.02,227.89,1.5562]
[1734465798212,2.1927,228.01,227.97,2.1931]
[1734465798412,8.09112351,228.02,227.93,2.36]
[1734465799318,8.09112351,228.02,227.95,2.1932]
[1734465799617,8.09112351,228.02,227.93,2.36]
[1734465799818,2.1927,228.01,227.93,2.36]
[1734465800018,8.09112351,227.99,227.93,2.36]
[1734465800217,2.1931,227.98,227.89,3.9162]
[1734465801014,2.1931,227.98,227.95,2.1933]
[1734465801613,2.1931,227.97,227.89,1.5562]
[1734465801820,2.36,228.0,227.88,6.69962173]
[1734465801821,8.09112351,227.96,227.88,1.4645]
[1734465802012,8.09112351,227.93,227.88,1.4645]
[1734465802217,8.09112351,227.93,227.89,2.1938]
[1734465802417,10.28472351,227.93,227.88,1.4645]
[1734465802618,8.09112351,227.93,227.88,1.4645]
[1734465803015,10.45112351,227.96,227.88,1.4645]
[1734465803714,2.5497352,227.95,227.88,1.4645]
[1734465803916,2.1934,227.94,227.9,2.1938]
[1734465805524,2.1935,227.93,227.89,2.1939]
[1734465808226,2.55438209,227.92,227.89,2.1939]
[1734465808420,2.1935,227.93,227.9,2.1938]
[1734465809832,2.1934,227.94,227.9,2.1938]
[1734465810229,10.45112351,227.96,227.9,2.1938]
[1734465810429,2.55474593,227.95,227.9,2.1938]
[1734465810732,2.1935,227.93,227.88,2.1939]
[1734465810934,2.55474593,227.92,227.88,2.1939]
[1734465811129,2.1935,227.93,227.85,1.4183]
[1734465811329,2.1935,227.93,227.89,2.1939]
[1734465814439,10.28462351,227.93,227.89,2.1939]
[1734465815538,2.1937,227.91,227.84,1.4354]
[1734465816132,8.09112351,227.96,227.84,1.4354]
[1734465816329,2.56232513,227.95,227.85,1.4984]
[1734465816531,2.56232513,227.94,227.92,2.1936]
[1734465816737,10.28442351,227.96,227.92,2.1936]
[1734465816941,2.56213384,227.95,227.92,2.1936]
[1734465817243,2.56515638,227.94,227.92,2.1936]
[1734465817441,10.28442351,227.96,227.92,2.1936]
[1734465817442,2.56515638,227.93,227.92,2.1936]
[1734465818640,8.09112351,227.96,227.93,2.1934]
[1734465818843,2.56725629,227.95,227.87,2.36]
[1734465819031,2.56725629,227.94,227.87,2.36]
[1734465819231,2.56725629,227.93,227.92,2.1936]
[1734465819439,2.56725629,227.95,227.87,2.36]
[1734465819639,2.56725629,227.94,227.87,2.36]
[1734465819833,2.56725629,227.93,227.87,2.36]
[1734465820040,8.09112351,227.96,227.92,2.1937]
[1734465820233,2.57221007,227.95,227.87,2.36]
[1734465820437,2.57221007,227.94,227.87,2.36]
[1734465820639,2.57221007,227.93,227.9,2.1939]
[1734465820943,2.57221007,227.92,227.9,2.1939]
[1734465821136,2.57221007,227.91,227.9,2.1939]
[1734465821438,2.1937,227.93,227.9,2.1939]
[1734465821642,2.57221007,227.92,227.85,1.4984]
[1734465822546,2.57221007,227.92,227.84,1.4354]
[1734465822842,8.09112351,227.9,227.84,1.4354]
[1734465823045,4.76641007,227.89,227.86,2.1944]
[1734465823344,2.57221007,227.88,227.86,2.1944]
[1734465824439,2.57221007,227.88,227.84,1.4354]
[1734465824740,10.66333358,227.87,227.81,1.5085]
[1734465824939,2.57221007,227.86,227.78,1.5337]
[1734465825441,8.09112351,227.84,227.78,1.5337]
[1734465825638,2.57221007,227.83,227.78,1.5337]
[1734465825837,4.76701007,227.83,227.78,1.5337]
[1734465826046,2.57221007,227.82,227.78,1.5337]
[1734465826241,8.09112351,227.84,227.78,1.5337]
[1734465826436,2.58065857,227.83,227.76,2.1953]
[1734465826642,8.09112351,227.81,227.76,2.1953]
[1734465827142,2.58236366,227.8,227.76,2.1953]
[1734465827342,2.58236366,227.79,227.76,2.1953]
[1734465827546,2.58236366,227.78,227.76,2.1953]
[1734465827746,2.58236366,227.77,227.76,2.1953]
[1734465827942,2.58236366,227.79,227.76,2.1953]
[1734465828248,2.58236366,227.78,227.77,2.1953]
[1734465828444,2.58236366,227.8,227.77,2.1953]
[1734465828641,8.09112351,227.81,227.77,2.1953]
[1734465828642,2.58236366,227.79,227.77,2.1953]
[1734465828945,2.58236366,227.78,227.77,2.1953]
[1734465829148,2.58236366,227.8,227.77,2.1953]
[1734465829342,2.58236366,227.79,227.77,2.1953]
[1734465829538,2.58236366,227.8,227.77,2.1953]
[1734465829749,2.58236366,227.79,227.75,1.4236]
[1734465830046,8.09112351,227.81,227.75,1.4236]
[1734465830047,2.58236366,227.78,227.75,1.4236]
[1734465830248,2.58236366,227.77,227.75,1.4236]
[1734465830449,2.58236366,227.76,227.75,2.1955]
[1734465832244,13.18,228.08,227.73,8.09112351]
[1734465832440,4.93931779,227.97,227.78,8.09112351]
[1734465832751,4.93931779,227.97,227.79,3.8023]
[1734465832752,2.1942,227.88,227.79,3.8023]
[1734465832941,2.57910469,227.87,227.79,1.4423]
[1734465833145,2.57910469,227.86,227.79,1.4423]
[1734465833342,2.57910469,227.85,227.79,1.4423]
[1734465833547,2.57910469,227.84,227.79,1.4423]
[1734465833747,2.57910469,227.83,227.81,2.1948]
[1734465833947,2.57910469,227.82,227.81,2.1948]
[1734465834752,0.24020469,227.82,227.81,2.1948]
[1734465834951,2.1942,227.88,227.79,1.4423]
[1734465835648,2.1942,227.88,227.81,2.1948]
[1734465835954,2.1943,227.87,227.79,1.4423]
[1734465836445,2.1943,227.87,227.83,2.1946]
[1734465836651,2.1942,227.88,227.79,1.4423]
[1734465837051,2.1942,227.88,227.83,2.1946]
[1734465838855,8.09112351,227.87,227.74,72.48753714]
[1734465839060,8.09112351,227.84,227.75,2.36]
[1734465839249,10.45112351,227.84,227.75,2.36]
[1734465839448,4.5545,227.85,227.81,2.1948]
[1734465839655,2.1945,227.85,227.81,2.1948]
[1734465839847,10.45112351,227.87,227.75,2.36]
[1734465840154,2.1947,227.84,227.8,2.1949]
[1734465840456,8.09112351,227.87,227.75,2.36]
[1734465840754,6.68164401,227.98,227.85,2.1944]
[1734465840755,4.5541,227.89,227.85,2.1944]
[1734465840955,8.09112351,227.9,227.85,2.1944]
[1734465841363,8.09112351,227.9,227.75,10.45112351]
[1734465841757,2.1941,227.89,227.86,2.1944]
[1734465841955,8.09112351,227.93,227.8,2.36]
[1734465842258,8.09112351,227.93,227.81,11.86792351]
[1734465842462,8.09112351,227.93,227.89,2.1941]
[1734465842654,8.09112351,227.93,227.82,3.0282]
[1734465843153,8.09112351,227.96,227.84,8.09112351]
[1734465843351,5.18094401,227.98,227.84,8.09112351]
[1734465843654,2.1933,227.97,227.92,2.1937]
[1734465844155,10.45112351,227.99,227.86,2.36]
[1734465844451,8.09112351,227.96,227.86,2.36]
[1734465844657,8.09112351,227.93,227.82,5.3882]
[1734465845458,2.194,227.91,227.86,2.1943]
[1734465846055,2.194,227.91,227.87,2.1943]
[1734465846359,2.1939,227.92,227.82,5.3882]
[1734465846563,2.1939,227.92,227.88,2.1942]
[1734465847662,8.09112351,227.93,227.89,2.1941]
[1734465849461,8.09112351,227.93,227.87,2.1942]
[1734465849762,8.09112351,227.93,227.82,5.3882]
[1734465851058,2.1939,227.91,227.87,2.1943]
[1734465851557,8.09112351,227.93,227.87,2.1943]
[1734465851755,8.09112351,227.93,227.82,5.3882]
[1734465852068,2.1939,227.91,227.82,5.3882]
[1734465852260,8.09112351,227.93,227.85,2.1944]
[1734465852461,8.09112351,227.9,227.82,1.5509]
[1734465852657,8.09112351,227.9,227.76,18.12766166]
[1734465852658,8.09112351,227.87,227.76,18.12766166]
[1734465852867,8.09112351,227.84,227.76,2.1953]
[1734465853366,2.195,227.81,227.76,2.1953]
[1734465853565,2.195,227.81,227.77,2.1952]
[1734465853968,2.1949,227.81,227.74,1.4637]
[1734465854157,8.09112351,227.84,227.77,2.1952]
[1734465854364,8.09112351,227.87,227.74,9.55482351]
[1734465854565,2.36,227.89,227.74,9.55482351]
[1734465854767,2.36,227.89,227.85,2.1944]
[1734465854966,8.09112351,227.9,227.85,2.1944]
[1734465855263,8.09112351,227.9,227.79,2.36]
[1734465855465,8.09112351,227.97,227.8,11.01582351]
[1734465855666,2.1937,227.94,227.81,3.74622094]
[1734465855863,2.1937,227.94,227.8,29.18640085]
[1734465856059,2.1937,227.94,227.81,3.74585144]
[1734465856373,8.09112351,227.97,227.84,18.17057734]
[1734465856559,8.09112351,227.97,227.94,2.1935]
[1734465856761,7.63578547,228.0,227.94,2.1935]
[1734465857165,7.63578547,228.0,227.95,2.1934]
[1734465857765,8.09112351,228.01,227.98,2.1932]
[1734465857966,10.28382351,228.04,227.9,141.66775962]
[1734465858267,10.28382351,228.04,227.91,3.0659]
[1734465858566,8.09112351,228.04,227.91,3.0659]
[1734465858762,8.09112351,228.0,227.91,3.0659]
[1734465859169,10.28422351,228.0,227.94,2.1936]
[1734465859672,2.1934,227.97,227.91,2.1938]
[1734465859865,8.09112351,228.0,227.9,2.36]
[1734465860371,2.1933,227.98,227.91,2.1938]
[1734465860767,8.09112351,228.0,227.91,2.1938]
[1734465861069,2.36,227.99,227.92,2.1938]
[1734465861974,2.1932,227.98,227.93,2.1937]
[1734465862273,2.36,227.99,227.9,2.36]
[1734465863664,2.1934,227.96,227.9,2.36]
[1734465863867,2.1934,227.96,227.91,2.1939]
[1734465864369,2.36,227.99,227.87,2.1942]
[1734465864370,8.09112351,227.97,227.87,2.1942]
[1734465864573,8.09112351,227.97,227.85,5.3249]
[1734465864974,2.1938,227.93,227.89,2.1941]
[1734465865570,8.09112351,227.94,227.87,2.1942]
[1734465865869,10.45112351,227.94,227.87,2.1942]
[1734465866167,10.45112351,227.94,227.85,1.4768]
[1734465866374,10.45112351,227.94,227.85,2.1944]
[1734465866969,2.1942,227.88,227.83,2.1946]
[1734465867172,2.1942,227.88,227.79,1.4814]
[1734465867173,8.09112351,227.88,227.79,1.4814]
[1734465867573,2.1947,227.83,227.74,50.22]
[1734465868570,2.1947,227.83,227.78,2.1951]
[1734465870283,8.09112351,227.85,227.74,50.22]
[1734465870577,8.09112351,227.82,227.74,50.22]
[1734465870979,2.1952,227.78,227.74,50.22]
[1734465871180,8.09112351,227.82,227.74,50.22]
[1734465871582,2.1954,227.76,227.74,50.22]
[1734465872785,2.1955,227.75,227.74,50.22]
[1734465873482,8.09112351,227.76,227.68,74.09812757]
[1734465873685,2.1956,227.74,227.68,76.29422757]
[1734465875376,8.09112351,227.76,227.68,74.09812757]
[1734465875589,2.1957,227.73,227.68,74.09812757]
[1734465876289,1.5183,227.8,227.68,74.09812757]
[1734465876290,2.1952,227.78,227.68,74.09812757]
[1734465876787,2.1952,227.78,227.72,2.1956]
[1734465877283,2.1952,227.78,227.73,2.1956]
[1734465877488,8.09112351,227.82,227.69,8.09112351]
[1734465877683,8.09112351,227.82,227.7,1.5236]
[1734465877884,8.09112351,227.82,227.76,2.1953]
[1734465878084,5.32911392,227.81,227.76,2.1953]
[1734465879581,7.52401392,227.81,227.76,2.1953]
[1734465880186,5.32911392,227.81,227.71,1.5034]
[1734465880687,2.195,227.8,227.75,2.1954]
[1734465881794,2.1953,227.77,227.73,2.1956]
[1734465882093,8.09112351,227.79,227.7,1.5236]
[1734465882290,8.09112351,227.82,227.7,1.5236]
[1734465882490,15.62922327,227.82,227.77,2.1952]
[1734465886094,2.1949,227.81,227.77,2.1952]
[1734465886297,13.43442327,227.82,227.77,2.1952]
[1734465886594,4.5546,227.84,227.72,8.09112351]
[1734465886796,2.1946,227.84,227.72,8.09112351]
[1734465886986,5.33011115,227.84,227.72,8.09112351]
[1734465887885,2.1947,227.83,227.75,2.1954]
[1734465888092,5.33011115,227.84,227.71,2.36]
[1734465888696,8.09112351,227.82,227.71,2.36]
[1734465888994,2.36,227.81,227.71,2.36]
[1734465889292,2.195,227.8,227.71,2.36]
[1734465889697,2.1952,227.78,227.74,2.1955]
[1734465890700,2.1954,227.76,227.72,2.1957]
[1734465891195,8.09112351,227.73,227.51,4.3955]
[1734465891400,8.09112351,227.68,227.57,4.4199]
[1734465892294,8.09112351,227.68,227.57,9.5896558]
[1734465892495,8.09112351,227.68,227.61,2.1967]
[1734465892496,2.1963,227.66,227.61,2.1967]
[1734465893598,2.36,227.69,227.65,2.1964]
[1734465893895,2.36,227.69,227.6,2.36]
[1734465894096,8.09112351,227.71,227.6,2.36]
[1734465894402,10.28702351,227.71,227.6,2.36]
[1734465895200,10.28702351,227.71,227.66,2.1962]
[1734465899106,2.36,227.72,227.69,2.196]
[1734465899312,8.09112351,227.74,227.6,10.45112351]
[1734465899514,10.45112351,227.77,227.63,8.09112351]
[1734465899809,2.1955,227.75,227.7,2.1958]
[1734465900412,8.09112351,227.77,227.66,2.9575]
[1734465900612,10.28652351,227.77,227.73,2.1956]
[1734465900810,10.45112351,227.83,227.69,8.09112351]
[1734465901003,2.1949,227.81,227.73,2.1956]
[1734465901212,2.1949,227.81,227.7,2.36]
[1734465901912,2.195,227.8,227.75,2.1954]
[1734465902815,2.195,227.8,227.7,2.36]
[1734465903712,2.195,227.8,227.75,2.1954]
[1734465905217,2.1948,227.82,227.77,2.1952]
[1734465905715,2.1951,227.79,227.73,2.1956]
[1734465905914,8.09112351,227.77,227.67,1.416]
[1734465906215,10.28652351,227.77,227.71,2.1957]
[1734465906408,8.09112351,227.77,227.71,2.1957]
[1734465906810,2.1954,227.76,227.71,2.1957]
[1734465907414,2.1955,227.75,227.71,2.1957]
[1734465907616,8.09112351,227.74,227.66,2.9575]
[1734465908012,2.196,227.7,227.66,2.9575]
[1734465908817,8.09112351,227.71,227.61,1.4348]
[1734465909018,8.09112351,227.68,227.61,1.4348]
[1734465909717,2.1963,227.66,227.61,3.6315]
[1734465910416,8.09112351,227.65,227.58,2.997]
[1734465911012,2.1965,227.64,227.59,2.197]
[1734465911621,8.09112351,227.65,227.58,1.5259]
[1734465912116,8.09112351,227.65,227.56,2.1972]
[1734465912419,2.1969,227.6,227.55,2.1974]
[1734465912810,8.09112351,227.62,227.52,3.0272]
[1734465913016,2.197,227.59,227.54,2.1975]
[1734465913815,2.1971,227.58,227.53,2.1975]
[1734465914415,2.36,227.63,227.52,3.0272]
[1734465914416,2.1972,227.57,227.52,5.2249]
[1734465914612,8.09112351,227.59,227.52,2.1977]
[1734465915120,2.36,227.58,227.52,2.1977]
[1734465915420,2.1973,227.56,227.52,2.1977]
[1734465915818,2.36,227.58,227.52,2.1977]
[1734465917518,2.36,227.58,227.47,3.0589]
[1734465918015,2.36,227.58,227.47,8.36907205]
[1734465918618,2.36,227.58,227.5,2.1978]
[1734465918828,2.36,227.58,227.47,8.36907205]
[1734465920222,2.36,227.58,227.55,2.1974]
[1734465920418,2.1969,227.61,227.49,8.09112351]
[1734465920620,10.45112351,227.62,227.49,8.09112351]
[1734465921023,10.45112351,227.62,227.5,2.36]
[1734465921223,2.197,227.6,227.55,2.1973]
[1734465921421,10.45112351,227.62,227.55,2.1973]
[1734465921620,10.45112351,227.62,227.56,2.1972]
[1734465921621,12.64792351,227.62,227.56,2.1972]
[1734465921918,10.45112351,227.62,227.56,2.1972]
[1734465922517,16.18224702,227.59,227.47,3.0589]
[1734465922718,8.09112351,227.5,227.37,23.53815421]
[1734465922917,10.45112351,227.5,227.39,2.8462]
[1734465923127,2.1983,227.46,227.4,2.1987]
[1734465923926,8.09112351,227.47,227.39,2.8462]
[1734465924421,2.1984,227.45,227.39,2.8462]
[1734465924625,8.09112351,227.47,227.39,2.8462]
[1734465925325,10.45112351,227.5,227.39,2.8462]
[1734465925519,12.64912351,227.5,227.39,2.8462]
[1734465925919,10.45112351,227.5,227.43,2.1985]
[1734465926618,8.09112351,227.5,227.43,2.1985]
[1734465926827,10.45112351,227.5,227.43,2.1985]
[1734465927527,2.198,227.49,227.43,2.1985]
[1734465929529,8.09112351,227.5,227.39,2.8462]
[1734465929730,7.37931624,227.49,227.39,2.8462]
[1734465930329,8.09112351,227.5,227.44,2.1984]
[1734465930330,2.1981,227.48,227.44,2.1984]
[1734465930526,8.09112351,227.5,227.4,2.36]
[1734465930726,4.5504,227.61,227.4,2.36]
[1734465930727,8.09112351,227.53,227.4,2.36]
[1734465930931,8.09112351,227.53,227.48,2.198]
[1734465930932,10.28872351,227.53,227.48,2.198]
[1734465931227,8.09112351,227.6,227.45,10.45112351]
[1734465931527,2.1971,227.58,227.46,3.7853]
[1734465931732,8.09112351,227.6,227.46,3.7853]
[1734465931927,8.09112351,227.63,227.48,8.09112351]
[1734465932534,10.45112351,227.66,227.58,2.1971]